Cogmind - Beta 12 @@@ ROGUE MODE // 2023.05.08 @ 14:56:31 Player: Inkie Result: Self-destructed Performance ------------- Evolutions (2) 1000 Regions Visited (7) 1400 Robots Destroyed (83) 415 Value Destroyed (2056) 2056 Prototype IDs (12) 240 Alien Tech Used (0) 0 Bonus (85) 85 TOTAL SCORE: 5196 Bonus ------- High Alert Combat Kills 85 Cogmind --------- Core Integrity 443/550 Matter 280/300 Energy 11/100 System Corruption 0% Temperature Cool (0) Movement Core (900) Ox17 Location -8/Materials Parts ------- > --- POWER (1) -------- (None) > --- PROPULSION (2) --- (None) > --- UTILITY (5) ------ High-capacity Storage Unit > --- WEAPON (3) ------- EM Pulse Cannon EM Pulse Cannon > --- INVENTORY (20) --- Armored Wheel Armored Wheel Humpback Humpback Humpback Medium Armor Plating Hacking Suite Hacking Suite Hacking Suite System Shield Improved Medium Laser Rocket Launcher Rocket Launcher Peak State ------------ > --- POWER ------------ Cooled Ion Engine > --- PROPULSION ------- Armored Wheel Armored Wheel > --- UTILITY ---------- Cooling System Cooling System High-capacity Storage Unit Medium Armor Plating Insulated Plating > --- WEAPON ----------- Spread Laser Spread Laser Advanced Beam Cannon > --- INVENTORY -------- Armored Wheel Armored Wheel Humpback Humpback Humpback Hacking Suite Hacking Suite System Shield Spread Laser EM Pulse Cannon EM Pulse Cannon Rocket Launcher Rocket Launcher [Rating: 27] Favorites ----------- Power Cooled Ion Engine Engine Cooled Ion Engine Propulsion Light Treads Treads Light Treads Wheel Armored Wheel Utility Cooling System Device Cooling System Storage Small Storage Unit Protection Reactive Plating Weapon Advanced Beam Cannon Energy Gun Spread Laser Energy Cannon Advanced Beam Cannon Ballistic Gun Assault Rifle Launcher Grenade Launcher Build | -11 -10 -10 -9 -9 -9 -8 -8 ------- Run | Jun Mat Min Mat Min Exi Min Mat Slots Evolved 4 | . . . 2 . . . 2 Power . | . . . . . . . . Propulsion . | . . . . . . . . Utility 3 | . . . 2 . . . 1 Weapon 1 | . . . . . . . 1 Parts Attached 47 | 6 . 2 23 . 1 5 10 Power 4 | 1 . . 2 . . . 1 Engine 4 | 1 . . 2 . . . 1 Core . | . . . . . . . . Reactor . | . . . . . . . . Propulsion 10 | 2 . . 7 . . 1 . Treads 7 | 2 . . 5 . . . . Leg . | . . . . . . . . Wheel 3 | . . . 2 . . 1 . Hover . | . . . . . . . . Flight . | . . . . . . . . Utility 15 | 1 . 1 8 . 1 1 3 Device 4 | . . . 3 . . . 1 Storage 4 | 1 . . 2 . 1 . . Processor . | . . . . . . . . Hackware . | . . . . . . . . Protection 7 | . . 1 3 . . 1 2 Artifact . | . . . . . . . . Weapon 18 | 2 . 1 6 . . 3 6 Energy Gun 6 | . . . 2 . . . 4 Energy Cannon 5 | . . . 2 . . 1 2 Ballistic Gun 4 | 2 . . 2 . . . . Ballistic Cannon . | . . . . . . . . Launcher 3 | . . 1 . . . 2 . Special Weapon . | . . . . . . . . Impact Weapon . | . . . . . . . . Slashing Weapon . | . . . . . . . . Piercing Weapon . | . . . . . . . . Special Melee Weapon . | . . . . . . . . Unidentified Prototypes 3 | . . . 3 . . . . Parts Lost 16 | . . . 2 . . 4 10 Power 2 | . . . . . . . 2 Propulsion 3 | . . . . . . 1 2 Utility 7 | . . . 1 . . 2 4 Weapon 4 | . . . 1 . . 1 2 Highest Loss Streak 7 | . . . 1 . . 2 7 To Critical Strikes . | . . . . . . . . Average Slot Usage (%) 94 | . 85 94 96 100 100 89 92 Engine 11 | . 14 14 11 11 11 11 8 Treads 16 | . 28 28 20 11 11 9 . Wheel 6 | . . . 1 11 11 12 17 Device 13 | . . . 16 22 22 12 14 Storage 11 | . 14 14 11 11 11 11 9 Protection 10 | . . 8 13 11 11 11 14 Energy Gun 4 | . . . 5 . . . 19 Energy Cannon 12 | . . . 14 22 22 19 6 Ballistic Gun 5 | . 28 21 2 . . . . Launcher 1 | . . 6 . . . 2 . Naked Turns . | . . . . . . . . Heaviest Build 72 | 14 14 18 49 49 69 69 72 Greatest Support 40 | 40 40 40 40 12 12 24 24 Greatest Overweight (x) 5 | . . . 4 4 5 5 2 Average Overweight (x) 2 | . . . . 4 4 4 2 Largest Inventory Capacity 20 | 8 8 8 15 15 20 20 20 Average Capacity 13 | 6 8 8 11 15 17 20 20 Most Carried 20 | . 2 7 15 15 20 20 20 Average Carried 11 | . 1 6 10 15 16 18 17 Final Capacity 20 | 8 8 8 15 15 20 20 20 Final Carried 20 | . 2 7 15 15 20 17 16 Class Distribution -------------------- 89% | Mutant 10% | Tank Dominant Class ---------------- Mutant | -10/Materials Mutant | -10/Mines Mutant | -9/Materials Mutant | -9/Mines Mutant | -9/Exiles Mutant | -8/Mines Tank | -8/Materials Resources | -11 -10 -10 -9 -9 -9 -8 -8 ----------- Run | Jun Mat Min Mat Min Exi Min Mat Matter Collected 915 | 240 99 123 287 . . 46 120 Remotely . | . . . . . . . . Salvage Created 2408 | . 108 232 1073 . . 326 669 Parts 152 | . 8 13 69 . . 25 37 Haulers Intercepted 5 | . . . 3 . . . 2 Recyclers Shooed 1 | . . 1 . . . . . Parts Field Recycled . | . . . . . . . . Retrieved Matter . | . . . . . . . . Parts Self-Destructed . | . . . . . . . . Prevented . | . . . . . . . . Kills | -11 -10 -10 -9 -9 -9 -8 -8 ------- Run | Jun Mat Min Mat Min Exi Min Mat Combat Hostiles Destroyed 65 | . 1 8 27 . . 14 15 Guns 34 | . 1 5 16 . . . 12 Cannons 22 | . . . 11 . . 8 3 AOE 9 | . . 3 . . . 6 . Classes Destroyed 12 | . 3 2 4 . . 1 2 Worker 5 | . 1 . 2 . . 2 . Tunneler 1 | . . 1 . . . . . Hauler 5 | . . . 3 . . . 2 Recycler 1 | . . . . . . . 1 Mechanic 1 | . . . . . . . 1 Operator 4 | . 2 . 1 . . . 1 Watcher 1 | . . . 1 . . . . Swarmer 25 | . . 3 8 . . 10 4 Grunt 24 | . 1 5 9 . . 3 6 Brawler 3 | . . . 3 . . . . Sentry 11 | . . . 7 . . . 4 Hunter 2 | . . . . . . 1 1 Best Kill Streak 11 | . 2 5 11 . . 5 6 Combat Bots Only 10 | . 1 5 10 . . 4 5 Max Kills in Single Turn 3 | . 1 3 3 . . 3 2 Gunslinging 1 | . . . 1 . . . 1 Exploded 3 | . . 2 . . . 3 . Melee . | . . . . . . . . Uniques/NPCs Destroyed . | . . . . . . . . Combat | -11 -10 -10 -9 -9 -9 -8 -8 -------- Run | Jun Mat Min Mat Min Exi Min Mat Damage Taken 2991 | . 66 272 826 . . 915 912 Core 451 | . 20 72 82 . . 170 107 Absorbed by Shields . | . . . . . . . . Core Remaining (%) 66 | 100 . 63 . . . 37 . Volleys Fired 171 | . 14 13 64 . . 35 45 Largest 3 | . 2 2 2 . . 2 3 Hottest 198 | . 40 40 136 . . 136 198 Shots Fired 359 | . 28 25 125 . . 64 117 Gun 222 | . 28 23 77 . . . 94 Cannon 131 | . . . 48 . . 60 23 Launcher 6 | . . 2 . . . 4 . Special . | . . . . . . . . Kinetic 68 | . 28 23 17 . . . . Thermal 285 | . . . 108 . . 60 117 Explosive 6 | . . 2 . . . 4 . Electromagnetic . | . . . . . . . . Robot Hit Streak 16 | . 9 14 13 . . 12 16 Robot Miss Streak 7 | . 2 1 6 . . 2 7 Penetration Max . | . . . . . . . . Secondary Targets 5 | . . 1 3 . . . 1 Max Gunslinging Chain 1 | . . 1 1 . . . 1 Shots Hit Robots 275 | . 19 21 95 . . 44 96 Core Hits 256 | . 7 17 98 . . 20 114 Critical Kills . | . . . . . . . . Critical Parts Destroyed 1 | . . 1 . . . . . Critical Strikes 1 | . . 1 . . . . . Destroy 1 | . . 1 . . . . . Melee Attacks . | . . . . . . . . Impact . | . . . . . . . . Slashing . | . . . . . . . . Piercing . | . . . . . . . . Sneak Attacks . | . . . . . . . . Combat Hostiles . | . . . . . . . . Follow-up Attacks . | . . . . . . . . Damage Inflicted 5208 | . 243 373 1509 . . 1500 1583 Guns 2540 | . 241 252 949 . . . 1098 Cannons 1851 | . . . 556 . . 923 372 Explosions 811 | . . 121 . . . 577 113 Melee . | . . . . . . . . Ramming 6 | . 2 . 4 . . . . Kinetic 643 | . 241 252 150 . . . . Thermal 3861 | . . . 1355 . . 923 1583 Explosive 698 | . . 121 . . . 577 . Electromagnetic . | . . . . . . . . Impact . | . . . . . . . . Slashing . | . . . . . . . . Piercing . | . . . . . . . . Highest Corruption 3 | . 3 3 . . . . . Average Corruption 2 | . 2 3 . . . . . Corruption Purged . | . . . . . . . . Corruption Blocked . | . . . . . . . . Effects 10 | . 2 8 . . . . . Message Errors 1 | . . 1 . . . . . Matter Fused 2 | . . 2 . . . . . Heat Flow Errors 1 | . 1 . . . . . . Energy Discharges 3 | . . 3 . . . . . Data Loss (minor) 2 | . 1 1 . . . . . Misfires 1 | . . 1 . . . . . Overload Shots . | . . . . . . . . Overflow Damage 67 | . . . 1 . . 22 44 Projectiles 15 | . . . 1 . . 14 . Explosions 52 | . . . . . . 8 44 Melee . | . . . . . . . . Knockbacks . | . . . . . . . . Impact . | . . . . . . . . Kinetic . | . . . . . . . . Secondary . | . . . . . . . . Self-Inflicted Damage 165 | . . . . . . 53 112 Shots 3 | . . . . . . 2 1 Rammed 3 | . 2 . 1 . . . . Targets Rammed 3 | . 2 . 1 . . . . Kicked . | . . . . . . . . Crushed . | . . . . . . . . Highest Temperature 298 | . 195 23 246 . . 186 298 Average Temperature 77 | . 101 9 98 . . 49 88 Received Heat Transfer 1041 | . 36 150 279 . . 315 261 Effects 1 | . . . . . . . 1 Interference 1 | . . . . . . . 1 Siege Activations . | . . . . . . . . Robots Corrupted . | . . . . . . . . Combat Hostiles . | . . . . . . . . Parts Fried . | . . . . . . . . Impact Corruptions . | . . . . . . . . Robots Melted . | . . . . . . . . Combat Hostiles . | . . . . . . . . Parts Melted 7 | . . . 2 . . 4 1 Heat Transferred 5785 | . . . 2019 . . 1665 2101 Parts Sabotaged . | . . . . . . . . Parts Stolen . | . . . . . . . . Parts Stripped . | . . . . . . . . Power Chain Reactions . | . . . . . . . . Missiles Intercepted . | . . . . . . . . Alert | -11 -10 -10 -9 -9 -9 -8 -8 ------- Run | Jun Mat Min Mat Min Exi Min Mat Peak Influence 508 | . 79 220 508 198 . 174 439 Initial 198 | . . . 85 198 . . 63 Average 216 | . 47 130 334 198 . 126 224 Maximum Alert Level 2 | . . 1 2 . . . 2 Low Security (%) 56 | 100 100 53 20 100 . 100 48 Level 1 28 | . . 46 44 . . . 45 Level 2 14 | . . . 34 . . . 6 Level 3 . | . . . . . . . . Level 4 . | . . . . . . . . Level 5 . | . . . . . . . . High Security . | . . . . . . . . Max Security . | . . . . . . . . Squads Dispatched 10 | . 2 2 4 . . . 2 Investigation 1 | . . 1 . . . . . Extermination . | . . . . . . . . Reinforcement 8 | . 2 . 4 . . . 2 Assault 1 | . . 1 . . . . . Garrison . | . . . . . . . . Intercept . | . . . . . . . . Searches Triggered . | . . . . . . . . Construction Impeded . | . . . . . . . . Haulers Reinforced . | . . . . . . . . Active Scanning Responses . | . . . . . . . . Cargo Convoy Interrupts . | . . . . . . . . Stealth | -11 -10 -10 -9 -9 -9 -8 -8 --------- Run | Jun Mat Min Mat Min Exi Min Mat Distress Signals 11 | . 1 . 7 . . . 3 Communications Jammed . | . . . . . . . . Distress Signals . | . . . . . . . . Times Spotted 104 | . 6 8 46 . . 14 30 Peak Tracking Total 11 | . 2 4 11 . . 3 6 Tactical Retreats 6 | . 1 . 2 . . . 3 Traps | -11 -10 -10 -9 -9 -9 -8 -8 ------- Run | Jun Mat Min Mat Min Exi Min Mat Traps Triggered 4 | . 2 . 1 . . . 1 Indirectly . | . . . . . . . . Trap Hack Attempts . | . . . . . . . . Triggered . | . . . . . . . . Disarmed . | . . . . . . . . Reprogrammed . | . . . . . . . . Reused . | . . . . . . . . Traps Extracted . | . . . . . . . . Installed . | . . . . . . . . Triggered . | . . . . . . . . Machines | -11 -10 -10 -9 -9 -9 -8 -8 ---------- Run | Jun Mat Min Mat Min Exi Min Mat Machines Disabled 2 | . . . 1 . . . 1 Max in Single Turn 1 | . . . 1 . . . 1 Machines Repaired . | . . . . . . . . Machines Sabotaged . | . . . . . . . . Overloaded Fab Kills . | . . . . . . . . Hacking | -11 -10 -10 -9 -9 -9 -8 -8 --------- Run | Jun Mat Min Mat Min Exi Min Mat Machines Accessed 13 | . 3 1 5 . 1 1 2 Terminals 11 | . 3 . 5 . . 1 2 Fabricators . | . . . . . . . . Repair Stations . | . . . . . . . . Recycling Units . | . . . . . . . . Scanalyzers . | . . . . . . . . Garrison Access . | . . . . . . . . Total Hacks 44 | . 9 1 17 . 1 5 11 Successful 17 | . 4 1 3 . 1 3 5 Failed 27 | . 5 . 14 . . 2 6 Catastrophic 3 | . 1 . 2 . . . . Database Lockouts . | . . . . . . . . Manual 41 | . 9 . 17 . . 5 10 Terminals 42 | . 9 . 17 . . 5 11 Fabricators . | . . . . . . . . Repair Stations . | . . . . . . . . Recycling Units . | . . . . . . . . Scanalyzers . | . . . . . . . . Garrison Access . | . . . . . . . . Terminal Hacks 12 | . 2 1 2 . 1 3 3 Record 1 | . . . . . 1 . . Prototype ID Bank 6 | . . . 1 . . 3 2 Open Door 1 | . . 1 . . . . . Branch Access Points 2 | . 1 . 1 . . . . Terminal Index 1 | . . . . . . . 1 Recall Reinforcements 1 | . 1 . . . . . . Fabricator Hacks . | . . . . . . . . Repair Station Hacks . | . . . . . . . . Recycling Unit Hacks . | . . . . . . . . Scanalyzer . | . . . . . . . . Garrison Access Hacks . | . . . . . . . . Unauthorized Hacks 5 | . 2 . 1 . . . 2 Terminals 5 | . 2 . 1 . . . 2 Botnet 3 | . 1 . 1 . . . 1 Operators 2 | . 1 . . . . . 1 Fabricators . | . . . . . . . . Repair Stations . | . . . . . . . . Recycling Units . | . . . . . . . . Scanalyzers . | . . . . . . . . Garrison Access . | . . . . . . . . Data Cores Recovered . | . . . . . . . . Used . | . . . . . . . . Hacking Detections 11 | . 3 . 5 . . 1 2 Full Trace Events . | . . . . . . . . Feedback Events . | . . . . . . . . Feedback Blocked . | . . . . . . . . Robot Schematics Acquired . | . . . . . . . . Robots Built . | . . . . . . . . Authchips . | . . . . . . . . Time . | . . . . . . . . Total Robot Build Rating . | . . . . . . . . Part Schematics Acquired . | . . . . . . . . Parts Built . | . . . . . . . . Authchips . | . . . . . . . . Time . | . . . . . . . . Total Part Build Rating . | . . . . . . . . Parts Repaired . | . . . . . . . . Time . | . . . . . . . . Parts Recycled . | . . . . . . . . Recycled Matter . | . . . . . . . . Retrieved Matter . | . . . . . . . . Retrieved Components . | . . . . . . . . Parts Scanalyzed . | . . . . . . . . Part Schematics Acquired . | . . . . . . . . Parts Damaged . | . . . . . . . . Bothacking | -11 -10 -10 -9 -9 -9 -8 -8 ------------ Run | Jun Mat Min Mat Min Exi Min Mat Used RIF Installer . | . . . . . . . . Robots Hacked . | . . . . . . . . Non-combat . | . . . . . . . . Combat . | . . . . . . . . Robot Hacks Applied . | . . . . . . . . Relay Couplers Released . | . . . . . . . . Fabnet Peak Effective % . | . . . . . . . . Robots Rewired . | . . . . . . . . Allies Hacked . | . . . . . . . . Hacks Repelled . | . . . . . . . . Allies | -11 -10 -10 -9 -9 -9 -8 -8 -------- Run | Jun Mat Min Mat Min Exi Min Mat Total Allies . | . . . . . . . . Largest Group . | . . . . . . . . Highest-Rated Group . | . . . . . . . . Highest-Rated Ally . | . . . . . . . . Total Orders . | . . . . . . . . Ally Attacks . | . . . . . . . . Total Damage . | . . . . . . . . Kills . | . . . . . . . . Allies Corrupted . | . . . . . . . . Allies Melted . | . . . . . . . . Intel | -11 -10 -10 -9 -9 -9 -8 -8 ------- Run | Jun Mat Min Mat Min Exi Min Mat Robot Analysis Total . | . . . . . . . . Derelict Logs Recovered 1 | . . 1 . . . . . Drone Launches . | . . . . . . . . Drone Recoveries . | . . . . . . . . Exploration | -11 -10 -10 -9 -9 -9 -8 -8 ------------- Run | Jun Mat Min Mat Min Exi Min Mat Turns Passed 4186 | 71 426 376 1485 226 406 642 554 Spaces Moved 2039 | 41 223 206 601 150 257 331 230 Core 2 | 2 . . . . . . . Treads 984 | 39 223 206 516 . . . . Legs . | . . . . . . . . Wheels 1053 | . . . 85 150 257 331 230 Hover . | . . . . . . . . Flight . | . . . . . . . . Fastest Speed 50 | 50 160 160 120 150 150 120 120 Average Speed 161 | 154 160 160 187 150 156 157 120 Slowest Speed 245 | 160 160 160 245 150 165 165 120 Overloaded Moves . | . . . . . . . . Propulsion Burnouts . | . . . . . . . . Robots Hopped . | . . . . . . . . Cave-ins Triggered . | . . . . . . . . Exploration Rate (%) 42 | 6 31 60 62 34 54 71 21 Regions Visited 7 Branch Regions 4 Pre-discovered Areas 1 | . . . . . 1 . . Known Exits Taken 3 | . 1 1 1 . . . . Unknown Exits Taken 4 | 1 . . . 1 1 1 . Scrap Searched 4 | . . 1 . 2 . 1 . Spaces Dug . | . . . . . . . . Terrain Destroyed 82 | . . 8 . . . 29 45 Melee . | . . . . . . . . Projectile . | . . . . . . . . AOE 82 | . . 8 . . . 29 45 Terrain Rammed . | . . . . . . . . Walls Destroyed . | . . . . . . . . Machines Disabled . | . . . . . . . . Actions | -11 -10 -10 -9 -9 -9 -8 -8 --------- Run | Jun Mat Min Mat Min Exi Min Mat Total 2586 | 46 263 228 840 151 262 385 411 Wait 277 | . 23 3 114 2 . 15 120 Move 2032 | 40 222 205 600 149 256 330 230 Hop . | . . . . . . . . Pick Up 29 | . 2 5 14 . 3 . 5 Fast Attach 20 | 6 . 1 12 . . . 1 Attach 13 | . . . 3 . . 3 7 Detach 1 | . . . 1 . . . . Swap 15 | . . 1 9 . 1 2 2 Drop 25 | . . . 22 . 2 . 1 Fire 171 | . 14 13 64 . . 35 45 Melee . | . . . . . . . . Ram . | . . . . . . . . Kick . | . . . . . . . . Crush 3 | . 2 . 1 . . . . Escape Stasis . | . . . . . . . . Rewire . | . . . . . . . . Trap . | . . . . . . . . Miscellaneous . | . . . . . . . . Route ------- -11/Junkyard -10/Materials (discovered 3 exits: *Mat / *Min x2) -10/Mines (discovered 2 exits: *Mat x2) -9/Materials (discovered 3 exits: *Mat x2 / *Min) -9/Mines -9/Exiles -8/Mines -8/Materials (discovered 2 exits: [*Sto x2]) History --------- Turn | Location | Event 7 | -11/Junkyard | Discovered new exit (range 15) 72 | -11/Junkyard | Entered Materials 148 | -10/Materials | Identified exit to Mines 161 | -10/Materials | Discovered new exit (range 15) 301 | -10/Materials | Build established: Mutant 498 | -10/Materials | Entered Mines 509 | -10/Mines | Met a Derelict shopkeep closing up shop 564 | -10/Mines | Received a Rocket Launcher from a helpful Derelict 652 | -10/Mines | A weapon hastily lodged in a ceiling crevice suddenly fell to the ground 783 | -10/Mines | Identified exit to Materials 863 | -10/Mines | Discovered exit to Materials (range 9) 872 | -10/Mines | Met a Derelict testing a Signal Generator 874 | -10/Mines | Entered Materials 874 | -9/Materials | Evolved 2 slots: Utility x2 1370 | -9/Materials | Destroyed 10 combat bots 1665 | -9/Materials | Discovered new exit (range 4) 1921 | -9/Materials | Discovered new exit (range 7) 2210 | -9/Materials | Identified exit to Mines 2257 | -9/Materials | Discovered new exit (range 9) 2359 | -9/Materials | Entered Mines 2531 | -9/Mines | Deemed a non-threat by the Exiles lab entrance 2579 | -9/Mines | Discovered new exit (range 5) 2585 | -9/Mines | Entered Exiles 2621 | -9/Exiles | Met 8R-AWN 2647 | -9/Exiles | Met EX-HEX 2725 | -9/Exiles | Met EX-DEC 2752 | -9/Exiles | Learned location of Zion (-6) 2978 | -9/Exiles | Discovered new exit (range 10) 2991 | -9/Exiles | Entered Mines 3096 | -8/Mines | Core integrity fell below 50% 3604 | -8/Mines | Discovered new exit (range 7) 3633 | -8/Mines | Entered Materials 3633 | -8/Materials | Evolved 2 slots: Utility x1, Weapon x1 3640 | -8/Materials | Discovered new exit (range 7) 3943 | -8/Materials | Build established: Tank 3966 | -8/Materials | Discovered new exit (range 10) 4187 | -8/Materials | Self-destructed Last Messages --------------- area. 04169_ Penetrated by Slug. 04169_ Cld. Ion Engine destroyed. 04169_ Insulated Plating destroyed. 04169_ Knocked back. 04173_ Slug penetrates Wall. 04174_ Acquired 7 matter. 04175_ Slug penetrates Wall. 04177_ Arm. Wheel destroyed. 04177_ Spread Laser blasted off. 04177_ Knocked back. 04180_ Lgt. Deuterium Engine destroyed. 04180_ R-06 Scavenger collects Flight Unit. 04181_ Penetrated by Slug. 04181_ Cooling System destroyed. 04181_ Spread Laser destroyed. 04181_ Knocked back. 04182_ Arm. Wheel destroyed. 04185_ Spread Laser blasted off. 04185_ Knocked back. Map ----- +----------------------------------------------------+ | ?????????????????????????????????????????????????? | | ?????????????????????????????????????????????????? | | ?????????????????????????????????????????????????? | | ?????????????????????????????????????????????????? | | ?????????????????????????????????????????????????? | | ?????????????????????????????????????????????????? | | ?????????????????????????????????????????????????? | | ?????????????????????????????????????????????????? | | ?????????????????????????????????????????????????? | | ?????????????????????????????????????????????????? | | ?????????????????????????????????????????????????? | | ?????????????????????????????????????????????????? | | ?????????????????????????????????????????????????? | | ?????????????????????????????????????????????????? | | ?????????????????????????####????????????????????? | | ?????????????????????????# ######?#############?? | | ????????????????????????## #?# [ T #?? | | ???????????????????????## """""""### [%[ #?? | | ???????????????????????# " ** "# """ "" #?? | | ???????????????????????# "% "## """ """ #?? | | ???????????????????????# "= "## """ """ #?? | | ???????????????????????# " "## #?? | | ???????????????????????# " ### #?? | | ???????????????????????## "% ########+####/##? | | ???????# "" #########;######+########### #? | | ???????# %/r %=uH [!%@[g!==%=%g #? | | ???????# ###%###;;;###### ########### #? | | ??????????????# ######?????# #??????######+## #? | | ??????????????# #??????????# #??????# ## #? | | ??????????????# #??????????# #??????# [ [! ## #? | | ??????????????# ??????????# #??????# [] ## #? | | ??????????????# #????????### ###????# [ [] ## #? | | ??????????????# #????????#= % #????# ## #? | | ??????????????# #????????# [% #????# ## ## | | ??????????????# #????????# =< #???######### # | | ??????????????? ?????????# #???# # # | | ??????????????? ?????????# #???# + T % | | ??????????????? ?????????## ##???# # # | | ??????????????? ??????????# #????# # # | | ??????????????? ??????????# #????# ### ### | | ??????????????? ??????????# #????#########?# #?? | | ??????????????? ?????????? #??????#######?# #?? | | ??????????????????????????##+##???? !!! ## #?? | | ??????????????????????????????????# !!! ?# #?? | | ??????????????????????????????????# !!! ! ?# #?? | | ??????????????????????????????????# ## #?? | | ??????????????????????????????????# """ """ ## #?? | | ??????????????????????????????????# """ """ ## #?? | | ????????????????????????#########?# """ """??# #?? | | ????????????????????????# ??? ????# #?? | +----------------------------------------------------+ Best States ------------- Heat Dissipation 75 Energy Generation 14 Energy Capacity 280 Matter Stores 300 Matter Capacity 300 Sight Range 16 Terrain Scan Density 10 Armor Coverage 375 Resistance: KI 20 Resistance: EM 15 Evasion (%) 40 Recoil Reduction 2 Item Schematics ----------------- None Robot Schematics ------------------ None Fabricated ------------ Nothing Alien Tech Used ----------------- None Achievements -------------- None Challenges ------------ None Game ------ Seed CompositeCooledCapacitor Manual? 0 Play Time 00:26:03 Cumulative 484.1 hours Start 2023.05.08 @ 14:35:04 End 2023.05.08 @ 14:56:31 Sessions 1 Manual Loads 0 Difficulty Rogue Special Mode None Game No. 520 Rogue 511 Adventurer 8 Explorer 1 Win Type - Total 9 Types 5/1/3/0/0/0/0/0/0 Lore% 82 Gallery% 91 Achievement% 71 Wizard Run 0 Options --------- ASCII 0 Keyboard 0 Movement Numpad Keybinds 1 Fullscreen 2 Font 18/Terminus Map View 76x50 Tactical HUD 1 Map Filters NONE Filters NONE Steam 1 RUN: c5cef346-904a-4163-9828-1b16cde505c9